fUSD/lending_fUSD_20260126
["ID","MTS","AMOUNT","RATE_DAILY","PERIOD"]
[403605319,1769416240574,-500.0,0.00017098,2]
[403605321,1769416240583,-500.0,0.00017098,2]
[403605322,1769416240592,-500.0,0.00017098,2]
[403605324,1769416240603,-500.0,0.00017098,2]
[403605326,1769416240613,-500.0,0.00017098,2]
[403605328,1769416240622,-500.0,0.00017098,2]
[403605330,1769416240631,-500.0,0.00017098,2]
[403605332,1769416240640,-500.0,0.00017098,2]
[403605364,1769416240955,-500.0,0.00017098,2]
[403605366,1769416240965,-500.0,0.00017098,2]
[403605368,1769416240974,-659.59741944,0.00017098,2]
[403605370,1769416240985,-659.59741944,0.00017098,2]
[403605372,1769416240994,-500.0,0.00017098,2]
[403605374,1769416241003,-659.59741944,0.00017098,2]
[403605376,1769416241013,-659.59741944,0.00017098,2]
[403605378,1769416241023,-659.59741944,0.00017098,2]
[403605380,1769416241032,-659.59741944,0.00017098,2]
[403605381,1769416241042,-659.59741944,0.00017098,2]
[403605382,1769416241052,-659.59741944,0.00017098,2]
[403605383,1769416241061,-659.59741944,0.00017098,2]
[403605384,1769416241071,-659.59741944,0.00017098,2]
[403605385,1769416241080,-659.59741944,0.00017098,2]
[403605386,1769416241090,-659.59741944,0.00017098,2]
[403605387,1769416241099,-659.59741944,0.00017098,2]
[403605388,1769416241108,-659.59741944,0.00017098,2]
[403605389,1769416241118,-659.59741944,0.00017098,2]
[403605390,1769416241128,-659.59741944,0.00017098,2]
[403605391,1769416241139,-659.59741944,0.00017098,2]
[403605392,1769416241149,-659.59741944,0.00017098,2]
[403605393,1769416241158,-659.59741944,0.00017098,2]
[403605394,1769416241167,-659.59741944,0.00017098,2]
[403605395,1769416241177,-659.59741944,0.00017098,2]
[403605396,1769416241186,-659.59741944,0.00017098,2]
[403605397,1769416241195,-659.59741944,0.00017098,2]
[403605398,1769416241204,-659.59741944,0.00017098,2]
[403605399,1769416241214,-659.59741944,0.00017098,2]
[403605400,1769416241223,-659.59741944,0.00017098,2]
[403605401,1769416241232,-659.59741944,0.00017098,2]
[403605402,1769416241242,-659.59741944,0.00017098,2]
[403605403,1769416241252,-659.59741944,0.00017098,2]
[403605404,1769416241263,-500.0,0.00017098,2]
[403605405,1769416241273,-500.0,0.00017098,2]
[403605406,1769416241282,-500.0,0.00017098,2]
[403605407,1769416241291,-500.0,0.00017098,2]
[403605408,1769416241302,-500.0,0.00017098,2]
[403605409,1769416241311,-500.0,0.00017098,2]
[403605410,1769416241321,-500.0,0.00017098,2]
[403605411,1769416241330,-500.0,0.00017098,2]
[403605412,1769416241339,-500.0,0.00017098,2]
[403605413,1769416241349,-500.0,0.00017098,2]
[403605414,1769416241359,-500.0,0.00017098,2]
[403605415,1769416241368,-500.0,0.00017098,2]
[403605416,1769416241377,-660.79668747,0.00017098,2]
[403605417,1769416241386,-660.79668747,0.00017098,2]
[403605418,1769416241395,-660.79668747,0.00017098,2]
[403605419,1769416241405,-500.0,0.00017098,2]
[403605420,1769416241415,-500.0,0.00017098,2]
[403605421,1769416241425,-660.79668747,0.00017098,2]
[403605422,1769416241435,-660.79668747,0.00017098,2]
[403605423,1769416241444,-500.0,0.00017098,2]
[403605424,1769416241453,-500.0,0.00017098,2]
[403605425,1769416241462,-660.79668747,0.00017098,2]
[403605426,1769416241472,-500.0,0.00017098,2]
[403605427,1769416241481,-500.0,0.00017098,2]
[403605428,1769416241490,-660.79668747,0.00017098,2]
[403605429,1769416241499,-500.0,0.00017098,2]
[403605430,1769416241508,-660.79668747,0.00017098,2]
[403605431,1769416241517,-500.0,0.00017098,2]
[403605432,1769416241529,-660.79668747,0.00017098,2]
[403605433,1769416241539,-660.79668747,0.00017098,2]
[403605434,1769416241548,-660.79668747,0.00017098,2]
[403605435,1769416241557,-660.79668747,0.00017098,2]
[403605436,1769416241567,-660.79668747,0.00017098,2]
[403605437,1769416241576,-660.79668747,0.00017098,2]
[403605438,1769416241586,-660.79668747,0.00017098,2]
[403605439,1769416241595,-660.79668747,0.00017098,2]
[403605440,1769416241606,-660.79668747,0.00017098,2]
[403605441,1769416241615,-660.79668747,0.00017098,2]
[403605442,1769416241625,-660.79668747,0.00017098,2]
[403605443,1769416241634,-660.79668747,0.00017098,2]
[403605444,1769416241643,-660.79668747,0.00017098,2]
[403605445,1769416241652,-660.79668747,0.00017098,2]
[403605446,1769416241662,-660.79668747,0.00017098,2]
[403605447,1769416241671,-660.79668747,0.00017098,2]
[403605448,1769416241680,-653.33607971,0.00017098,2]
[403605449,1769416241690,-500.0,0.00017098,2]
[403605450,1769416241699,-500.0,0.00017098,2]
[403605451,1769416241709,-653.33607971,0.00017098,2]
[403605452,1769416241718,-500.0,0.00017098,2]
[403605453,1769416241727,-653.33607971,0.00017098,2]
[403605454,1769416241737,-500.0,0.00017098,2]
[403605455,1769416241746,-500.0,0.00017098,2]
[403605456,1769416241756,-500.0,0.00017098,2]
[403605457,1769416241766,-500.0,0.00017098,2]
[403605458,1769416241775,-500.0,0.00017098,2]
[403605459,1769416241784,-500.0,0.00017098,2]
[403605460,1769416241794,-204.32199483,0.00017098,2]
[403605461,1769416241803,-500.0,0.00017098,2]
[403605462,1769416241813,-500.0,0.00017098,2]
[403605463,1769416241822,-500.0,0.00017098,2]
[403605464,1769416241831,-500.0,0.00017099,2]
[403605465,1769416241841,-854.2589148,0.00017099,2]
[403605466,1769416241850,-250.0,0.00017099,2]
[403605467,1769416241860,-500.0,0.00017099,2]
[403605468,1769416241870,-250.0,0.00017099,2]
[403605469,1769416241880,-250.0,0.00017099,2]
[403605470,1769416241889,-500.0,0.00017099,2]
[403605471,1769416241898,-250.0,0.00017099,2]
[403605472,1769416241908,-250.0,0.00017099,2]
[403605473,1769416241918,-500.0,0.00017099,2]
[403605474,1769416241929,-250.0,0.00017099,2]
[403605475,1769416241938,-250.0,0.00017099,2]
[403605476,1769416241948,-250.0,0.00017099,2]
[403605477,1769416241957,-500.0,0.00017099,2]
[403605478,1769416241967,-250.0,0.00017099,2]
[403605479,1769416241976,-250.0,0.00017099,2]
[403605480,1769416241985,-500.0,0.00017099,2]
[403605481,1769416241995,-250.0,0.00017099,2]
[403605482,1769416242004,-250.0,0.00017099,2]
[403605483,1769416242014,-500.0,0.00017099,2]
[403605484,1769416242023,-250.0,0.00017099,2]
[403605485,1769416242033,-250.0,0.00017099,2]
[403605486,1769416242043,-500.0,0.00017099,2]
[403605487,1769416242052,-250.0,0.00017099,2]
[403605488,1769416242062,-578.20924308,0.00017099,2]
[403605489,1769416242072,-250.0,0.00017099,2]
[403605490,1769416242082,-500.0,0.00017099,2]
[403605491,1769416242091,-250.0,0.00017099,2]
[403605492,1769416242101,-250.0,0.00017099,2]
[403605493,1769416242110,-500.0,0.00017099,2]
[403605494,1769416242119,-250.0,0.00017099,2]
[403605495,1769416242130,-250.0,0.00017099,2]
[403605496,1769416242139,-500.0,0.00017099,2]
[403605497,1769416242151,-250.0,0.00017099,2]
[403605498,1769416242161,-250.0,0.00017099,2]
[403605499,1769416242171,-250.0,0.00017099,2]
[403605500,1769416242180,-250.0,0.00017099,2]
[403605501,1769416242190,-250.0,0.00017099,2]
[403605502,1769416242200,-250.0,0.00017099,2]
[403605503,1769416242209,-250.0,0.00017099,2]
[403605504,1769416242218,-721.12765535,0.00017099,2]
[403605505,1769416242227,-250.0,0.00017099,2]
[403605506,1769416242236,-250.0,0.00017099,2]
[403605507,1769416242246,-250.0,0.00017099,2]
[403605508,1769416242256,-250.0,0.00017099,2]
[403605509,1769416242265,-250.0,0.00017099,2]
[403605510,1769416242275,-385.40135603,0.00017099,2]
[403605511,1769416242285,-250.0,0.00017099,2]
[403605512,1769416242296,-250.0,0.00017099,2]
[403605513,1769416242307,-250.0,0.00017099,2]
[403605514,1769416242317,-250.0,0.00017099,2]
[403605515,1769416242326,-174.61919141,0.00017099,2]
[403605516,1769416242335,-250.0,0.00017099,2]
[403605517,1769416242344,-250.0,0.00017099,2]
[403605518,1769416242354,-151.0,0.00017099,2]
[403605519,1769416242364,-250.0,0.00017099,2]
[403605520,1769416242373,-250.0,0.00017099,2]
[403605521,1769416242382,-250.0,0.00017099,2]
[403605522,1769416242390,-250.0,0.00017099,2]
[403605523,1769416242400,-250.0,0.00017099,2]
[403605524,1769416242409,-250.0,0.00017099,2]
[403605525,1769416242419,-250.0,0.00017099,2]
[403605526,1769416242429,-250.0,0.00017099,2]
[403605527,1769416242438,-250.0,0.00017099,2]
[403605528,1769416242447,-301.82626148,0.00017099,2]
[403605529,1769416242456,-322.6107,0.00017099,2]
[403605530,1769416242465,-151.0,0.00017099,2]
[403605531,1769416242476,-204.1,0.00017164,2]
[403605532,1769416242485,-159.76,0.00017178,2]
[403605533,1769416242496,-150.0,0.00017178,2]
[403605534,1769416242505,-150.0,0.00017178,2]
[403605535,1769416242515,-150.0,0.00017178,2]
[403605536,1769416242525,-150.0,0.00017178,2]
[403605537,1769416242537,-389.61,0.00017178,2]
[403605538,1769416242547,-302.66,0.00017178,2]
[403605539,1769416242556,-150.0,0.00017178,2]
[403605540,1769416242567,-150.0,0.00017178,2]
[403605541,1769416242577,-150.0,0.00017178,2]
[403605542,1769416242587,-150.0,0.00017178,2]
[403605543,1769416242596,-150.0,0.00017178,2]
[403605544,1769416242606,-150.99,0.00017178,2]
[403605545,1769416242616,-237.0846,0.00017258,2]
[403605546,1769416242626,-204.1,0.00017284,2]
[403605547,1769416242635,-2500.0,0.00017332,2]
[403605548,1769416242645,-500.0,0.00017343,2]
[403605549,1769416242655,-1086.0,0.0001736,2]
[403605550,1769416242664,-1086.0,0.0001736,2]
[403605551,1769416242673,-204.1,0.00017403,2]
[403605552,1769416242682,-1000.0,0.00017432,2]
[403605553,1769416242692,-1000.0,0.00017432,2]
[403605554,1769416242701,-1000.0,0.00017432,2]
[403605555,1769416242710,-1005.20347568,0.00017432,2]
[403605556,1769416242719,-1000.0,0.00017432,2]
[403605557,1769416242728,-166.6,0.0001749,2]
[403605558,1769416242738,-166.6,0.0001749,2]
[403605559,1769416242748,-257278.96660064,0.000175,3]
[403605560,1769416242758,-204.1,0.00017523,2]
[403605561,1769416242768,-1000.0,0.00017534,2]
[403605562,1769416242778,-20050.25542141,0.00017572,2]
[403605563,1769416242787,-484.73,0.0001761,2]
[403605564,1769416242797,-500.0,0.00017612,2]
[403605565,1769416242806,-332.93475768,0.00017626,2]
[403605566,1769416242816,-182.9,0.00017633,2]
[403605567,1769416242825,-3039.54588051,0.0001764,2]
[403605568,1769416242834,-204.1,0.00017642,2]
[403605569,1769416242844,-885.86649465,0.00017647,2]
[403605570,1769416242854,-181.08010149,0.00017647,2]
[403605571,1769416242864,-151.0,0.00017647,2]
[403605572,1769416242874,-403.0,0.000177,5]
[403605573,1769416242883,-204.1,0.00017761,2]
[403605574,1769416242893,-5408.0168,0.00017767,2]
[403605575,1769416242903,-166.4,0.00017769,2]
[403605576,1769416242912,-4477.71814456,0.00017799,2]
[403605577,1769416242922,-667.07391485,0.00017799,2]
[403605578,1769416242931,-1007.97,0.00017807,2]
[403605579,1769416242941,-500.0,0.00017808,2]
[403605580,1769416242951,-1000.0,0.00017808,2]
[403605581,1769416242960,-667.07391479,0.0001781,2]
[403605582,1769416242969,-2602.30488931,0.0001782,2]
[403605583,1769416242979,-2683.716,0.00017821,2]
[403605584,1769416242988,-205.488,0.00017821,2]
[403605585,1769416242997,-667.07391479,0.00017821,2]
[403605586,1769416243006,-667.07391479,0.00017833,2]
[403605587,1769416243015,-1000.0,0.00017837,2]
[403605588,1769416243025,-667.07391479,0.00017844,2]
[403605589,1769416243034,-200.0,0.00017855,2]
[403605590,1769416243043,-667.07391479,0.00017855,2]
[403605591,1769416243053,-200.0,0.00017856,2]
[403605592,1769416243062,-200.0,0.00017856,2]
[403605593,1769416243071,-200.0,0.00017856,2]
[403605594,1769416243080,-150.5654977,0.0001786,2]
[403605595,1769416243089,-500.0,0.00017863,2]
[403605596,1769416243098,-667.07391479,0.00017866,2]
[403605597,1769416243107,-1999.71875408,0.00017873,2]
[403605598,1769416243116,-667.07391479,0.00017878,2]
[403605599,1769416243124,-204.1,0.00017881,2]
[403605600,1769416243133,-635.48348268,0.00017888,2]
[403605601,1769416243143,-220.14100775,0.00017888,2]
[403605602,1769416243152,-158.88913039,0.00017888,2]
[403605603,1769416243161,-172.62427,0.00017888,2]
[403605604,1769416243171,-667.07391479,0.00017889,2]
[403605605,1769416243180,-343.04127218,0.00017889,2]
[403605606,1769416243190,-518.00376401,0.0001789,2]
[403605607,1769416243199,-502.02909316,0.0001789,2]
[403605608,1769416243209,-502.02909315,0.00017895,2]
[403605609,1769416243219,-151.0,0.00017896,2]
[403605610,1769416243228,-246.13924238,0.00017898,2]
[403605611,1769416243238,-500.0,0.00017898,2]
[403605612,1769416243248,-500.0,0.00017898,2]
[403605613,1769416243257,-500.0,0.00017898,2]
[403605614,1769416243266,-542.94,0.00017898,2]
[403605615,1769416243275,-542.94,0.00017898,2]
[403605616,1769416243285,-542.94,0.00017898,2]
[403605617,1769416243295,-542.94,0.00017898,2]
[403605618,1769416243304,-472.59129476,0.00017898,2]
[403605619,1769416243313,-150.0,0.00017898,2]
[403605620,1769416243323,-150.0,0.00017898,2]
[403605621,1769416243332,-1007.97,0.00017898,2]
[403605622,1769416243342,-1007.97,0.00017898,2]
[403605623,1769416243352,-1007.97,0.00017898,2]
[403605624,1769416243361,-1007.97,0.00017898,2]
[403605625,1769416243371,-197.8450192,0.00017898,2]
[403605626,1769416243380,-500.0,0.00017898,2]
[403605627,1769416243390,-500.0,0.00017898,2]
[403605628,1769416243399,-500.0,0.00017898,2]
[403605629,1769416243409,-500.0,0.00017898,2]
[403605630,1769416243418,-1000000.0,0.00017899,2]
[403605631,1769416243428,-1801.27,0.00017899,2]
[403605632,1769416243437,-1801.27,0.00017899,2]
[403605633,1769416243447,-1801.27,0.00017899,2]
[403605634,1769416243456,-1801.27,0.00017899,2]
[403605635,1769416243465,-2371.73,0.00017899,2]
[403605636,1769416243475,-542.94,0.00017899,2]
[403605637,1769416243487,-197.84501919,0.00017899,2]
[403605638,1769416243496,-332.93475768,0.000179,2]
[403605639,1769416243506,-2483.69010106,0.000179,2]
[403605640,1769416243515,-1000.0,0.000179,2]
[403605641,1769416243525,-667.07391479,0.000179,2]
[403605642,1769416243537,-155.97251724,0.000179,2]
[403605643,1769416243546,-155.97251722,0.000179,2]
[403605644,1769416243555,-155.97251722,0.000179,2]
[403605645,1769416243565,-155.97251722,0.000179,2]
[403605646,1769416243574,-155.97251722,0.000179,2]
[403605647,1769416243584,-155.97251722,0.000179,2]
[403605648,1769416243593,-155.97251722,0.000179,2]
[403605649,1769416243604,-155.97251722,0.000179,2]
[403605650,1769416243614,-197.84501919,0.000179,2]
[403605651,1769416243623,-5800.0,0.000179,2]
[403605652,1769416243632,-502.02909315,0.000179,2]
[403605653,1769416243642,-365.55160693,0.000179,2]
[403605654,1769416243651,-964.69647427,0.000179,2]
[403605655,1769416243661,-1701.83892974,0.000179,2]
[403605656,1769416243670,-2545.8492586,0.000179,2]
[403605657,1769416243680,-3444.6159,0.000179,2]
[403605658,1769416243690,-7467.0,0.000179,2]
[403605659,1769416243700,-500.0,0.00017918,2]
[403605660,1769416243710,-172.2795408,0.00017942,3]
[403605661,1769416243720,-400.0,0.0001797,2]
[403605662,1769416243729,-400.0,0.0001797,2]
[403605663,1769416243739,-400.0,0.0001797,2]
[403605664,1769416243749,-704.68300704,0.0001797,2]
[403605665,1769416243758,-798.2174447,0.0001797,2]
[403605666,1769416243767,-150.0,0.00017972,2]
[403605667,1769416243778,-150.0,0.00017972,2]
[403605668,1769416243788,-500.0,0.00017972,2]
[403605669,1769416243798,-151.0,0.00017973,2]
[403605670,1769416243808,-151.0,0.00017973,2]
[403605671,1769416243818,-151.0,0.00017973,2]
[403605672,1769416243827,-151.0,0.00017973,2]
[403605673,1769416243837,-151.0,0.00017973,2]
[403605674,1769416243847,-151.0,0.00017973,2]
[403605675,1769416243856,-151.0,0.00017973,2]
[403605676,1769416243865,-151.0,0.00017973,2]
[403605677,1769416243875,-188.07834286,0.00017973,2]
[403605678,1769416243884,-6962.0,0.00017973,2]
[403605679,1769416243894,-1198.0,0.00017973,2]
[403605680,1769416243903,-1516.9719865,0.0001798,2]
[403605681,1769416243913,-1500.0,0.0001798,2]
[403605682,1769416243923,-301.03665033,0.0001798,2]
[403605683,1769416243932,-1500.0,0.0001798,2]
[403605684,1769416243942,-500.0,0.00017982,2]
[403605685,1769416243952,-214.75381521,0.00017987,2]
[403605686,1769416243961,-320.91438853,0.0001799,2]
[403605687,1769416243970,-329365.86067035,0.0001799,3]
[403605688,1769416243980,-28425.89174935,0.0001799,2]
[403605689,1769416243989,-343.04127218,0.0001799,2]
[403605690,1769416243998,-343.04127218,0.0001799,2]
[403605691,1769416244008,-542.94,0.00017998,2]
[403605692,1769416244017,-542.94,0.00017998,2]
[403605693,1769416244027,-542.94,0.00017998,2]
[403605694,1769416244036,-542.94,0.00017998,2]
[403605695,1769416244045,-1007.97,0.00017998,2]
[403605696,1769416244055,-1007.97,0.00017998,2]
[403605697,1769416244063,-1007.97,0.00017998,2]
[403605698,1769416244073,-1007.97,0.00017998,2]
[403605699,1769416244083,-1007.97,0.00017998,2]
[403605700,1769416244092,-500.0,0.00017998,2]
[403605701,1769416244102,-500.0,0.00017998,2]
[403605702,1769416244112,-500.0,0.00017998,2]
[403605703,1769416244122,-500.0,0.00017998,2]
[403605704,1769416244132,-300.0,0.00017998,2]
[403605705,1769416244142,-666.0,0.00017998,2]
[403605706,1769416244151,-300.0,0.00017998,2]
[403605707,1769416244162,-150.0,0.00017999,2]
[403605708,1769416244172,-1000.0,0.00017999,2]
[403605709,1769416244182,-1000.0,0.00017999,2]
[403605710,1769416244192,-3112.8258691,0.00017999,2]
[403605711,1769416244202,-11563.9544765,0.00017999,2]
[403605712,1769416244212,-349.67012808,0.00017999,2]
[403605713,1769416244222,-300.0,0.00017999,2]
[403605714,1769416244231,-666.0,0.00017999,2]
[403605715,1769416244240,-853563.8023963,0.00017999,2]
[403605716,1769416244250,-500.0,0.00017999,2]
[403605717,1769416244259,-531.00846507,0.00017999,2]
[403605718,1769416244268,-500.0,0.00017999,2]
[403605719,1769416244278,-500.0,0.00017999,2]
[403605720,1769416244287,-500.0,0.00017999,2]
[403605721,1769416244297,-500.0,0.00017999,2]
[403605722,1769416244307,-408.98199245,0.00017999,2]
[403605723,1769416244316,-9458.6452155,0.00017999,2]
[403605724,1769416244326,-23377.1307221,0.00017999,2]
[403605725,1769416244336,-30269.8096905,0.00017999,2]
[403605726,1769416244346,-194.61085239,0.00017999,2]
[403605727,1769416244357,-500.0,0.00017999,2]
[403605728,1769416244367,-500.0,0.00017999,2]
[403605729,1769416244376,-500.0,0.00017999,2]
[403605730,1769416244386,-500.0,0.00017999,2]
[403605731,1769416244395,-500.0,0.00017999,2]
[403605732,1769416244405,-500.0,0.00017999,2]
[403605733,1769416244415,-246.63108745,0.00017999,2]
[403605734,1769416244425,-500.0,0.00017999,2]
[403605735,1769416244435,-500.0,0.00017999,2]
[403605736,1769416244444,-500.0,0.00017999,2]
[403605737,1769416244454,-500.0,0.00017999,2]
[403605738,1769416244463,-500.0,0.00017999,2]
[403605739,1769416244473,-500.0,0.00017999,2]
[403605740,1769416244482,-500.0,0.00017999,2]
[403605741,1769416244492,-500.0,0.00017999,2]
[403605742,1769416244501,-287.69959162,0.00017999,2]
[403605743,1769416244511,-840.5164331,0.00017999,2]
[403605744,1769416244520,-290.41219346,0.00017999,2]
[403605745,1769416244533,-331.89964967,0.00017999,2]
[403605746,1769416244542,-518.07460941,0.00017999,2]
[403605747,1769416244552,-500.0,0.00017999,2]
[403605748,1769416244563,-500.0,0.00017999,2]
[403605749,1769416244572,-649.14983305,0.00017999,2]
[403605750,1769416244581,-155477.8360625,0.00017999,2]
[403605751,1769416244590,-666.0,0.00017999,2]
[403605752,1769416244601,-2445.4267717,0.00017999,2]
[403605753,1769416244611,-542.94,0.00017999,2]
[403605754,1769416244620,-542.94,0.00017999,2]
[403605755,1769416244630,-542.94,0.00017999,2]
[403605756,1769416244640,-542.94,0.00017999,2]
[403605757,1769416244650,-542.94,0.00017999,2]
[403605758,1769416244660,-542.94,0.00017999,2]
[403605759,1769416244670,-542.94,0.00017999,2]
[403605760,1769416244681,-542.94,0.00017999,2]
[403605761,1769416244690,-542.94,0.00017999,2]
[403605762,1769416244701,-542.94,0.00017999,2]
[403605763,1769416244710,-542.94,0.00017999,2]
[403605764,1769416244720,-542.94,0.00017999,2]
[403605765,1769416244730,-542.94,0.00017999,2]
[403605766,1769416244740,-542.94,0.00017999,2]
[403605767,1769416244749,-542.96675413,0.00017999,2]
[403605768,1769416244759,-10788.0147672,0.00017999,2]
[403605769,1769416244768,-300.0,0.00017999,2]
[403605770,1769416244778,-1007.97,0.00017999,2]
[403605771,1769416244787,-1007.97,0.00017999,2]
[403605772,1769416244797,-1007.97,0.00017999,2]
[403605773,1769416244807,-1007.97,0.00017999,2]
[403605774,1769416244817,-1007.97,0.00017999,2]
[403605775,1769416244827,-1007.97,0.00017999,2]
[403605776,1769416244836,-1007.97,0.00017999,2]
[403605777,1769416244846,-1007.97,0.00017999,2]
[403605778,1769416244856,-1007.97,0.00017999,2]
[403605779,1769416244866,-1007.97,0.00017999,2]
[403605780,1769416244876,-1007.97,0.00017999,2]
[403605781,1769416244886,-1007.97,0.00017999,2]
[403605782,1769416244896,-1007.97,0.00017999,2]
[403605783,1769416244905,-1008.16561324,0.00017999,2]
[403605784,1769416244915,-500.0,0.00017999,2]
[403605785,1769416244924,-500.0,0.00017999,2]
[403605786,1769416244934,-514.94989564,0.00017999,2]
[403605787,1769416244944,-500.0,0.00017999,2]
[403605788,1769416244954,-500.0,0.00017999,2]
[403605789,1769416244963,-410.87321222,0.00017999,2]
[403605790,1769416244972,-304.99875504,0.00017999,2]
[403605791,1769416244982,-348.22143575,0.00017999,2]
[403605792,1769416245206,-1000.0,0.00018,2]
[403605793,1769416245217,-542.70304932,0.00018,2]
[403605794,1769416245227,-226782.69520176,0.00018,2]
[403605795,1769416245236,-684879.48924566,0.00018,2]
[403605796,1769416245254,-2315.09651318,0.00018,2]
[403605797,1769416245358,-1123.42602351,0.00018,2]
[403605822,1769416248290,-709.17,0.00017891,2]
[403605823,1769416248306,-5090.83,0.00017891,2]
[403605824,1769416248317,-1853.22023622,0.000179,3]
[403605825,1769416248327,-1301.4058574,0.000179,2]
[403605826,1769416248336,-1196.69180523,0.00018,2]
[403605827,1769416248426,-1317103.04108799,0.00018,2]
[403605828,1769416248438,-541.82394898,0.00018,2]
[403605829,1769416248474,-4472.34233975,0.00018,2]
[403605830,1769416248486,-11856.94146657,0.00018,2]
[403605831,1769416248498,-405.8537147,0.00018,2]
[403605832,1769416248509,-4296.75088854,0.00018,2]
[403605833,1769416248548,-1270.02328596,0.00018,2]
[403605834,1769416248559,-13291.63888743,0.00018,2]
[403605835,1769416248571,-13259.25836996,0.00018,2]
[403605836,1769416248658,-339.49700121,0.00018,2]
[403606128,1769416617489,360.0,0.0002,120]
[403606146,1769416640138,7000.0,0.00018,30]
[403606189,1769416656560,6644.94,0.00018,30]
[403606190,1769416665082,360.0,0.0002,120]
[403606223,1769416735292,-501.22768712,0.00011773,2]
[403606263,1769416846502,2590.41,0.00012775,2]
[403606336,1769417149873,6230.76332245,0.00018,30]
[403606363,1769417432032,-312.7,0.00015284,4]
[403606364,1769417432168,-205.64099492,0.00015284,4]
[403606365,1769417432178,-500.0,0.00015325,2]
[403606366,1769417432188,-3162.94,0.00015385,2]
[403606367,1769417432197,-477.85393944,0.00015458,2]
[403606423,1769417438383,-722.14606056,0.00015458,2]
[403606425,1769417438393,-820.43,0.00015552,2]
[403606427,1769417438403,-166.66,0.00015804,2]
[403606429,1769417438413,-3766.39488602,0.00015818,2]
[403606431,1769417438422,-1743.97281565,0.00015818,2]
[403606434,1769417438434,-689.13374202,0.00015818,2]
[403606436,1769417438445,-1612.84782446,0.00015818,2]
[403606438,1769417438453,-151.0,0.00015875,2]
[403606440,1769417438463,-151.0,0.00015878,2]
[403606441,1769417438471,-151.0,0.00015883,2]
[403606443,1769417438481,-5410.51340914,0.0001589,2]
[403606446,1769417438492,-3405.42068105,0.0001589,2]
[403606448,1769417438503,-794.65098665,0.0001589,2]
[403606455,1769417438558,-267.79515136,0.0001589,2]
[403606462,1769417438612,-301.76454383,0.0001589,2]
[403606505,1769417440182,-347.053942,0.0001589,2]
[403606506,1769417440194,-5978.47128597,0.0001589,2]
[403606507,1769417440204,-16505.67,0.0001589,2]
[403606508,1769417440218,-151.0,0.00015897,2]
[403606509,1769417440228,-1000000.0,0.000159,2]
[403606510,1769417440238,-1000.0,0.00015918,2]
[403606511,1769417440247,-300.0,0.00015999,2]
[403606512,1769417440257,-4477.71814456,0.00016,2]
[403606513,1769417440267,-6628.7407,0.00016,2]
[403606514,1769417440277,-2500.0,0.00016,2]
[403606515,1769417440286,-237.0846,0.00016,2]
[403606516,1769417440296,-3354.645,0.00016036,2]
[403606517,1769417440306,-256.86,0.00016036,2]
[403606518,1769417440316,-3766.39488595,0.00016049,2]
[403606519,1769417440325,-4045.95438205,0.00016049,2]
[403606520,1769417440335,-215.8569823,0.00016079,2]
[403606521,1769417440344,-500.0,0.00016087,2]
[403606522,1769417440354,-500.0,0.00016087,2]
[403606523,1769417440363,-500.0,0.00016087,2]
[403606524,1769417440373,-550.0,0.00016087,2]
[403606525,1769417440382,-500.0,0.00016087,2]
[403606526,1769417440391,-500.0,0.00016087,2]
[403606527,1769417440401,-500.0,0.00016087,2]
[403606528,1769417440411,-500.0,0.00016087,2]